Workbook

Sheet Liquor Cost Potential Sample
A1: PURCHASES | E1: SALES
A2: Price Category | B2: Bottles Purchased per Week | C2: Average Cost per Bottle | E2: Happy Hour Liquor Sales as a Percentage of Total Liquor Sales
A3: Well | B3: 18 | C3: $7.00 | E3: 20%
A4: Call | B4: 7 | C4: $12.00
A5: Premium | B5: 4 | C5: $22.00 | E5: Last Year's Actual Liquor Sales
A6: Top Shelf | B6: 2 | C6: $30.00 | E6: $104,500.00
A8: PRICING | F8: POURING
A9: Price Category | B9: Happy Hour Price | C9: Regular Price | D9: Sales Mix | F9: Shot Size | I9: Drinks per Bottle
A10: =A3 -> Well | B10: $2.00 | C10: $3.00 | D10: =B3/(B3+B4+B5+B6) -> 0.58 | F10: 1.25 | I10: =IF(F10=0.75,45,IF(F10=0.875,38,IF(F10=1,33,IF(F10=1.125,30,IF(F10=1.25,27,IF(F10=1.5,22)))))) -> 27
A11: =A4 -> Call | B11: $3.00 | C11: $4.00 | D11: =B4/(B3+B4+B5+B6) -> 0.23
A12: =A5 -> Premium | B12: $4.00 | C12: $5.00 | D12: =B5/(B3+B4+B5+B6) -> 0.13
A13: =A6 -> Top Shelf | B13: $5.00 | C13: $6.00 | D13: =B6/(B3+B4+B5+B6) -> 0.06
A14: CALCULATIONS
A16: Price Category | B16: Cost per Bottle | C16: Cost per Ounce | D16: Cost per Drink | E16: Average Price | F16: Liquor Cost Percentage | G16: Weighted Average Factor | I16: Potential Revenue per Liter Bottle | J16: Potential Weekly Revenue
A17: =A10 -> Well | B17: =C3 -> $7.00 | C17: =B17/33 -> $0.21 | D17: =C17*F10 -> $0.27 | E17: =(B10*E3)+(C10*(1-E3)) -> $2.80 | F17: =D17/E17 -> 0.0946969697 | G17: =F17*D10 -> 5.50% | I17: =E17*I10 -> $75.60 | J17: =B3*I17 -> $1,360.80
A18: =A11 -> Call | B18: =C4 -> $12.00 | C18: =B18/33 -> $0.36 | D18: =C18*F10 -> $0.45 | E18: =(B11*E3)+(C11*(1-E3)) -> $3.80 | F18: =D18/E18 -> 0.1196172249 | G18: =F18*D11 -> 2.70% | I18: =E18*I10 -> $102.60 | J18: =B4*I18 -> $718.20
A19: =A12 -> Premium | B19: =C5 -> $22.00 | C19: =B19/33 -> $0.67 | D19: =C19*F10 -> $0.83 | E19: =(B12*E3)+(C12*(1-E3)) -> $4.80 | F19: =D19/E19 -> 0.1736111111 | G19: =F19*D12 -> 2.24% | I19: =E19*I10 -> $129.60 | J19: =B5*I19 -> $518.40
A20: =A13 -> Top Shelf | B20: =C6 -> $30.00 | C20: =B20/33 -> $0.91 | D20: =C20*F10 -> $1.14 | E20: =(B13*E3)+(C13*(1-E3)) -> $5.80 | F20: =D20/E20 -> 0.1959247649 | G20: =F20*D13 -> 1.26% | I20: =E20*I10 -> $156.60 | J20: =B6*I20 -> $313.20
J21: =SUM(J17:J20) -> $2,910.60
C22: Potential Liquor Cost Percentage: | E22: =SUM(G17:G20) -> 11.7%
A24: LIQUOR LOSS ANALYSIS
A25: Liquor Sales Potential Per Week: | D25: =$J$21 -> $2,910.60
A26: Liquor Sales Potential Per Month: | D26: =D25*4.3 -> $12,515.58
A27: Liquor Sales Potential Per Year: | D27: =D25*52 -> $151,351.20
A28: Liquor Sales LOST Per Year: | D28: =E6-D27 -> -$46,851.20

Sheet Liquor Cost Potential Worksheet
A1: PURCHASES | E1: SALES
A2: Price Category | B2: Bottles Purchased per Week | C2: Average Cost per Bottle | E2: Happy Hour Liquor Sales as a Percentage of Total Liquor Sales
E5: Last Year's Actual Liquor Sales
A8: PRICING | F8: POURING
A9: Price Category | B9: Happy Hour Price | C9: Regular Price | D9: Sales Mix | F9: Shot Size | I9: Drinks per Bottle
A10: =A3 -> 0 | D10: =B3/(B3+B4+B5+B6) ->  | I10: =IF(F10=0.75,45,IF(F10=0.875,38,IF(F10=1,33,IF(F10=1.125,30,IF(F10=1.25,27,IF(F10=1.5,22)))))) -> FALSE
A11: =A4 -> 0 | D11: =B4/(B3+B4+B5+B6) -> 
A12: =A5 -> 0 | D12: =B5/(B3+B4+B5+B6) -> 
A13: =A6 -> 0 | D13: =B6/(B3+B4+B5+B6) -> 
A14: CALCULATIONS
A16: Price Category | B16: Cost per Bottle | C16: Cost per Ounce | D16: Cost per Drink | E16: Average Price | F16: Liquor Cost Percentage | G16: Weighted Average Factor | I16: Potential Revenue per Liter Bottle | J16: Potential Weekly Revenue
A17: =A10 -> 0 | B17: =C3 -> $0.00 | C17: =B17/33 -> $0.00 | D17: =C17*F10 -> $0.00 | E17: =(B10*E3)+(C10*(1-E3)) -> $0.00 | F17: =D17/E17 ->  | G17: =F17*D10 ->  | I17: =E17*I10 -> $0.00 | J17: =B3*I17 -> $0.00
A18: =A11 -> 0 | B18: =C4 -> $0.00 | C18: =B18/33 -> $0.00 | D18: =C18*F10 -> $0.00 | E18: =(B11*E3)+(C11*(1-E3)) -> $0.00 | F18: =D18/E18 ->  | G18: =F18*D11 ->  | I18: =E18*I10 -> $0.00 | J18: =B4*I18 -> $0.00
A19: =A12 -> 0 | B19: =C5 -> $0.00 | C19: =B19/33 -> $0.00 | D19: =C19*F10 -> $0.00 | E19: =(B12*E3)+(C12*(1-E3)) -> $0.00 | F19: =D19/E19 ->  | G19: =F19*D12 ->  | I19: =E19*I10 -> $0.00 | J19: =B5*I19 -> $0.00
A20: =A13 -> 0 | B20: =C6 -> $0.00 | C20: =B20/33 -> $0.00 | D20: =C20*F10 -> $0.00 | E20: =(B13*E3)+(C13*(1-E3)) -> $0.00 | F20: =D20/E20 ->  | G20: =F20*D13 ->  | I20: =E20*I10 -> $0.00 | J20: =B6*I20 -> $0.00
J21: =SUM(J17:J20) -> $0.00
C22: Potential Liquor Cost Percentage: | E22: =SUM(G17:G20) -> 
A24: LIQUOR LOSS ANALYSIS
A25: Liquor Sales Potential Per Week: | D25: =$J$21 -> $0.00
A26: Liquor Sales Potential Per Month: | D26: =D25*4.3 -> $0.00
A27: Liquor Sales Potential Per Year: | D27: =D25*52 -> $0.00
A28: Liquor Sales LOST Per Year: | D28: =E6-D27 -> $0.00
